Cogmind - Beta 15 @@@ ROGUE MODE // 2025.05.26 @ 17:20:12 // Winter2019/RPGLIKE Player: Jack Result: Destroyed by P-70 Sage with Tesla Rifle Performance ------------- Evolutions (5) 2500 Regions Visited (16) 3200 Robots Destroyed (270) 1350 Value Destroyed (11199) 11199 Prototype IDs (24) 480 Alien Tech Used (0) 0 Bonus (3205) 3205 TOTAL SCORE: 21934 Bonus ------- High Alert Combat Kills 2218 Follower Combat Kills 328 Network Hubs Disabled 200 Aligned with FarCom 300 A7 Reached Mainframe 300 Friendly Fire -141 Cogmind --------- Core Integrity 0/1000 Matter 300/300 Energy 848/850 System Corruption 19% Temperature Cool (0) Movement Flying (37) Location -5/Factory Parts ------- > --- POWER (1) -------- Micro Antimatter Reactor > --- PROPULSION (2) --- Nuclear Pulse Thruster Impulse Thruster > --- UTILITY (8) ------ Structural Scanner (fused) Microactuators Nanoactuators Hacking Suite Hacking Suite Hacking Suite Hacking Suite > --- WEAPON (4) ------- Improved EM Shotgun Improved EM Shotgun (fused) Improved EM Shotgun Powered Hammer > --- INVENTORY (5) ---- Light Nuclear Core Light Angular Momentum Engine Datajack Field Lobotomy Kit (5) Peak State ------------ > --- POWER ------------ Micro Antimatter Reactor > --- PROPULSION ------- Nuclear Pulse Thruster Impulse Thruster > --- UTILITY ---------- Structural Scanner Microactuators Nanoactuators Force Field Hacking Suite Hacking Suite Hacking Suite Hacking Suite > --- WEAPON ----------- Improved EM Shotgun Improved EM Shotgun Improved EM Shotgun Powered Hammer > --- INVENTORY -------- Light Nuclear Core Light Angular Momentum Engine Datajack Field Lobotomy Kit [Rating: 63] Favorites ----------- Power Light Nuclear Core Engine Light Ion Engine Power Core Light Nuclear Core Reactor Micro Antimatter Reactor Propulsion Flight Unit Flight Unit Flight Unit Utility Hacking Suite Device Structural Scanner Hackware Hacking Suite Protection Improved Light Armor Plating Weapon Improved EM Shotgun Energy Gun Improved EM Shotgun Energy Cannon Improved EM Pulse Cannon Ballistic Gun Light Assault Rifle Launcher EMP Blaster Impact Weapon Powered Hammer Build | -11 -10 -10 -9 -9 -9 -8 -8 -7 -7 -7 -6 -6 -6 -6 -6 -5 ------- Run | Yrd Mat Min Mat Min Exi Min Mat Fac Was Fac Fac Ext Cet Arc Hub Fac Slots Evolved 11 | 2 . . 2 . . . 4 . . 1 1 1 . . . . Power . | . . . . . . . . . . . . . . . . . Propulsion 1 | 1 . . . . . . . . . . . . . . . . Utility 7 | . . . 1 . . . 4 . . 1 1 . . . . . Weapon 3 | 1 . . 1 . . . . . . . . 1 . . . . Parts Attached 46 | 2 3 3 5 3 . . 1 9 . 9 6 1 . . . 4 Power 5 | . 1 1 . 1 . . . . . . . . . . . 2 Engine 3 | . 1 1 . . . . . . . . . . . . . 1 Core 1 | . . . . 1 . . . . . . . . . . . . Reactor 1 | . . . . . . . . . . . . . . . . 1 Propulsion 5 | . 2 1 . . . . . . . . . 1 . . . 1 Treads . | . . . . . . . . . . . . . . . . . Leg . | . . . . . . . . . . . . . . . . . Wheel . | . . . . . . . . . . . . . . . . . Hover . | . . . . . . . . . . . . . . . . . Flight 5 | . 2 1 . . . . . . . . . 1 . . . 1 Utility 18 | . . . 3 1 . . . 3 . 8 2 . . . . 1 Device 6 | . . . . . . . . 1 . 3 1 . . . . 1 Storage . | . . . . . . . . . . . . . . . . . Processor . | . . . . . . . . . . . . . . . . . Hackware 5 | . . . 1 . . . . . . 3 1 . . . . . Protection 7 | . . . 2 1 . . . 2 . 2 . . . . . . Artifact . | . . . . . . . . . . . . . . . . . Weapon 18 | 2 . 1 2 1 . . 1 6 . 1 4 . . . . . Energy Gun 7 | 1 . . . . . . . 3 . . 3 . . . . . Energy Cannon 3 | . . . 1 . . . . 2 . . . . . . . . Ballistic Gun 2 | 1 . 1 . . . . . . . . . . . . . . Ballistic Cannon . | . . . . . . . . . . . . . . . . . Launcher 3 | . . . . 1 . . . 1 . . 1 . . . . . Special Weapon . | . . . . . . . . . . . . . . . . . Impact Weapon 3 | . . . 1 . . . 1 . . 1 . . . . . . Slashing Weapon . | . . . . . . . . . . . . . . . . . Piercing Weapon . | . . . . . . . . . . . . . . . . . Special Melee Weapon . | . . . . . . . . . . . . . . . . . Unidentified Prototypes . | . . . . . . . . . . . . . . . . . Corrupted Parts 7 | . . . 1 1 . . . 3 . 1 . . . . . 1 System Corruption 24 | . . . 2 1 . . . 10 . 1 . . . . . 10 Parts Lost 3 | . . . . 1 . . . 1 . . . . . . . 1 Power 1 | . . . . 1 . . . . . . . . . . . . Propulsion . | . . . . . . . . . . . . . . . . . Utility 2 | . . . . . . . . 1 . . . . . . . 1 Weapon . | . . . . . . . . . . . . . . . . . Highest Loss Streak 1 | . . . . 1 . . . 1 . . . . . . . 1 To Critical Strikes . | . . . . . . . . . . . . . . . . . Average Backups 2 | . . . . . 1 2 2 3 3 2 2 1 1 1 1 2 Power . | . . . . . . . . . . . . . . . . . Propulsion . | . . . . . . . . . . . . . . . . . Utility . | . . . . . . . . . . . . . . . . . Weapon . | . . . . . 1 1 1 2 2 1 1 . . . . . Tool/Special . | . . . . . . . . . . . . . . . . . Unused Backups 3 | . . . . . . . 1 . . . . . . . . 2 Power . | . . . . . . . . . . . . . . . . . Propulsion 1 | . . . . . . . 1 . . . . . . . . . Utility . | . . . . . . . . . . . . . . . . . Weapon . | . . . . . . . . . . . . . . . . . Tool/Special 2 | . . . . . . . . . . . . . . . . 2 Average Slot Usage (%) 92 | . 35 80 98 98 100 98 73 76 75 88 99 100 100 100 100 99 Engine 2 | . 2 16 14 10 . . . . . . . . . . . 3 Core 5 | . . . . . 12 12 9 8 8 7 7 6 6 6 6 2 Flight 16 | . 16 33 30 25 25 25 18 16 16 15 14 13 13 13 13 13 Device 17 | . . . . . . . . 6 8 22 28 27 26 26 26 25 Hackware 17 | . . . 3 12 12 12 9 8 8 12 27 27 26 26 26 26 Protection 4 | . . . 13 11 12 11 9 11 8 5 . . . . . . Energy Gun 10 | . 16 16 14 12 12 12 9 7 . . 4 20 20 20 20 20 Energy Cannon 6 | . . . 12 8 . . 2 4 16 14 10 . . . . . Launcher 1 | . . . . 3 12 12 6 5 . 1 . . . . . . Impact Weapon 6 | . . . 4 12 12 12 9 6 8 7 6 . 6 6 6 6 Peak Build Rating 63 | 1 4 5 11 14 15 16 17 28 25 42 46 51 51 51 51 63 Average Rating 35 | . 2 4 8 11 14 14 15 21 24 33 44 44 51 51 50 56 On Entrance 24 | . 1 4 5 11 14 15 15 17 24 25 41 43 51 51 51 51 Naked Turns . | . . . . . . . . . . . . . . . . . Heaviest Build 32 | 2 5 6 14 18 18 18 19 29 26 31 30 25 25 25 25 32 Greatest Support 38 | 3 8 8 18 18 18 18 23 33 33 33 33 35 35 35 35 38 Greatest Overweight (x) 1 | . . . . . . . . 1 . . 1 . . . . . Average Overweight (x) . | . . . . . . . . . . . . . . . . . Largest Inventory Capacity 5 | . . . 4 4 5 5 5 5 5 5 5 5 5 5 5 5 Average Capacity 4 | . . . 2 4 4 5 5 5 5 5 5 5 5 5 5 5 Most Carried 5 | . . . 4 4 5 5 5 4 4 5 5 5 5 4 5 5 Average Carried 3 | . . . 2 3 4 4 3 3 3 4 4 4 3 3 4 2 Final Capacity 5 | . . . 4 4 5 5 5 5 5 5 5 5 5 5 5 5 Final Carried 5 | . . . 2 4 5 4 2 3 4 5 5 5 3 4 5 4 Class Distribution -------------------- 32% | Scavenger-Mutant 22% | Hacker-Mutant 21% | Hacker-Tank 10% | Mutant 9% | Hacker-Skirmisher 3% | Scavenger-Tank Dominant Class ---------------- Mutant | -10/Materials Mutant | -10/Mines Mutant | -9/Materials Scavenger-Mutant | -9/Mines Scavenger-Mutant | -9/Exiles Scavenger-Mutant | -8/Mines Scavenger-Mutant | -8/Materials Scavenger-Mutant | -7/Factory Scavenger-Mutant | -7/Waste Scavenger-Mutant | -7/Factory Hacker-Mutant | -6/Factory Hacker-Skirmisher | -6/Extension Hacker-Tank | -6/Cetus Hacker-Tank | -6/Archives Hacker-Tank | -6/Hub_04(d) Hacker-Tank | -5/Factory Resources | -11 -10 -10 -9 -9 -9 -8 -8 -7 -7 -7 -6 -6 -6 -6 -6 -5 ----------- Run | Yrd Mat Min Mat Min Exi Min Mat Fac Was Fac Fac Ext Cet Arc Hub Fac Matter Collected 1774 | . 240 49 67 84 . 75 110 588 . 292 98 30 10 . 10 121 Remotely . | . . . . . . . . . . . . . . . . . Salvage Created 11850 | . 70 160 648 319 . 318 592 2386 . 1205 1800 1696 . 406 353 1897 Parts 547 | . 6 14 47 21 . 16 32 97 . 64 66 79 3 17 12 73 Haulers Intercepted . | . . . . . . . . . . . . . . . . . Recyclers Shooed 4 | . . . . . . . 2 2 . . . . . . . . Parts Field Recycled . | . . . . . . . . . . . . . . . . . Retrieved Matter . | . . . . . . . . . . . . . . . . . Parts Self-Destructed . | . . . . . . . . . . . . . . . . . Prevented . | . . . . . . . . . . . . . . . . . Kills | -11 -10 -10 -9 -9 -9 -8 -8 -7 -7 -7 -6 -6 -6 -6 -6 -5 ------- Run | Yrd Mat Min Mat Min Exi Min Mat Fac Was Fac Fac Ext Cet Arc Hub Fac Combat Hostiles Destroyed 220 | . 3 8 18 8 . 8 12 28 . 28 42 29 1 4 4 27 Melee 31 | . . . . . . . . 4 . 12 10 . . . . 5 Guns 64 | . 3 8 6 1 . . 2 . . . 7 21 . 3 2 11 Cannons 30 | . . . 10 4 . . 1 6 . 9 . . . . . . AOE 55 | . . . 2 2 . 7 9 12 . 2 8 7 . . 1 5 Classes Destroyed 14 | . 1 . 7 1 . 1 2 2 . . . . . . . . Worker 14 | . . . 1 1 . . . 6 . 2 2 . . . 2 . Builder 9 | . . . . . . . 1 6 . . 1 . . . . 1 Tunneler 3 | . . . . . . . 1 . . . . . . . . 2 Recycler 5 | . . . . 1 . . 1 1 . . 1 . . . 1 . Mechanic 1 | . . . 1 . . . . . . . . . . . . . Operator 11 | . . . 2 . . . . 2 . 5 . . . 1 . 1 Watcher 6 | . . . . . . . . 3 . . 1 1 . . . 1 Swarmer 37 | . 3 8 5 3 . 4 3 . . . 11 . . . . . Grunt 106 | . . . 7 5 . 2 8 16 . 17 24 10 . . 3 14 Brawler 6 | . . . 1 . . . . . . 3 1 . . . . 1 Duelist 5 | . . . 1 . . 1 . . . . 2 1 . . . . Sentry 32 | . . . 4 . . . 1 5 . 3 1 9 . 4 1 4 Hunter 8 | . . . . . . 1 . 3 . 1 . 1 . . . 2 Programmer 17 | . . . . . . . . 4 . 4 3 . . . . 6 Cetus Guard 1 | . . . . . . . . . . . . . 1 . . . Thug 2 | . . . . . . . . . . . . 2 . . . . Savage 2 | . . . . . . . . . . . . 2 . . . . Butcher 2 | . . . . . . . . . . . . 2 . . . . Guerrilla 3 | . . . . . . . . . . . . 3 . . . . Best Kill Streak 8 | . 3 5 6 5 . 7 8 5 . 4 7 6 1 4 7 4 Combat Bots Only 7 | . 3 5 5 3 . 7 6 3 . 4 7 6 1 4 3 4 Max Kills in Single Turn 4 | . 1 2 2 1 . 3 2 3 . 1 4 4 1 1 2 2 Gunslinging 1 | . . 1 . . . . . . . . . 1 . . . . Exploded 4 | . . . 2 1 . 3 2 2 . 1 4 2 . . 1 2 Melee 1 | . . . . . . . . 1 . 1 1 . . . . 1 Uniques/NPCs Destroyed . | . . . . . . . . . . . . . . . . . Combat | -11 -10 -10 -9 -9 -9 -8 -8 -7 -7 -7 -6 -6 -6 -6 -6 -5 -------- Run | Yrd Mat Min Mat Min Exi Min Mat Fac Was Fac Fac Ext Cet Arc Hub Fac Hostile Shots Fired 1221 | . 8 25 70 33 . 16 85 197 2 143 141 211 44 20 36 190 Missed 590 | . 6 8 40 20 . 7 47 96 2 82 49 118 17 11 20 67 Hits 631 | . 2 17 30 13 . 9 38 101 . 61 92 93 27 9 16 123 Melee 8 | . . . 2 . . . 1 . . . 3 1 . . . 1 Projectile 623 | . 2 17 28 13 . 9 37 101 . 61 89 92 27 9 16 122 AOE 1 | . . . . . . . . . . . . . . . . 1 Critical Strikes 29 | . . 1 1 1 . 1 3 3 . 2 2 . 3 . . 12 Part Disruptions 1 | . . . . . . . . . . . . . . . . 1 Damage Taken 9414 | . 17 141 451 275 . 183 727 1463 . 593 1402 1255 515 159 304 1929 Core 7192 | . 15 115 285 189 . 119 511 990 . 431 1170 1017 413 143 234 1560 Absorbed by Shields 2701 | . . . . . . . . . . 221 489 483 197 57 110 1144 Redirected to Core 5526 | . 5 83 212 153 . 89 406 814 . 300 794 772 361 59 234 1244 Ignored by Resistances 540 | . . . . . . . . . . . . . 138 37 50 315 Regen/Repaired (Parts) 87 | . . . . . . . . 15 . 72 . . . . . . Core Remaining (%) 89 | 100 . 86 . . . 96 76 . . 100 . . . . 76 . Volleys Fired 405 | . 6 15 46 22 . 16 27 79 1 42 36 44 4 9 5 53 Largest 3 | . 1 2 2 2 . 2 2 3 2 2 3 3 3 3 3 3 Hottest 161 | . 40 60 96 96 . 73 96 161 138 138 138 135 135 135 135 135 Shots Fired 912 | . 6 24 93 40 . 20 54 178 2 72 82 132 12 27 15 155 Gun 644 | . 6 24 53 22 . 6 27 91 . . 74 132 12 27 15 155 Cannon 172 | . . . 40 13 . . 7 41 2 63 6 . . . . . Launcher 96 | . . . . 5 . 14 20 46 . 9 2 . . . . . Special . | . . . . . . . . . . . . . . . . . Kinetic 16 | . . 9 7 . . . . . . . . . . . . . Thermal . | . . . . . . . . . . . . . . . . . Explosive 2 | . . . . . . . . . . . 2 . . . . . Electromagnetic 894 | . 6 15 86 40 . 20 54 178 2 72 80 132 12 27 15 155 Robot Hit Streak 38 | . 5 5 10 17 . 6 7 17 4 10 38 23 15 20 10 21 Robot Miss Streak 4 | . 1 3 3 3 . 2 3 4 . 2 3 2 1 1 2 3 Penetration Max . | . . . . . . . . . . . . . . . . . Secondary Targets 9 | . . 2 . . . . . . . . . 5 . . 1 1 Max Gunslinging Chain 1 | . . 1 . . . . . . . . . 1 . . 1 1 Shots Hit Robots 842 | . 5 11 59 26 . 12 28 142 2 90 136 121 20 27 13 150 Core Hits 526 | . 3 8 33 13 . 11 32 71 . 31 75 109 4 20 15 101 Critical Kills 6 | . . . . . . . . 1 . 1 3 . . . . 1 Critical Parts Destroyed 26 | . . . . . . . . 3 . 5 11 . . . . 7 Critical Strikes 35 | . . 1 . . . . 1 4 . 6 15 . . . . 8 Corrupt 2 | . . 1 . . . . 1 . . . . . . . . . Smash 33 | . . . . . . . . 4 . 6 15 . . . . 8 Melee Attacks 326 | . . . . . . . . 56 . 74 113 . 8 1 1 73 Impact 326 | . . . . . . . . 56 . 74 113 . 8 1 1 73 Slashing . | . . . . . . . . . . . . . . . . . Piercing . | . . . . . . . . . . . . . . . . . Sneak Attacks 19 | . . . . . . . . 3 . 6 5 . . 1 . 4 Combat Hostiles 8 | . . . . . . . . . . 3 2 . . . . 3 Follow-up Attacks . | . . . . . . . . . . . . . . . . . Damage Inflicted 27753 | . 66 114 1176 583 . 485 1173 4545 4 3801 5746 3563 429 581 905 4582 Guns 8324 | . 66 114 396 193 . 55 208 922 . . 1197 2235 208 446 240 2044 Cannons 3069 | . . . 599 237 . . 47 643 4 1417 122 . . . . . Explosions 7610 | . . . 181 153 . 430 918 1715 . 208 962 1328 . 61 665 989 Melee 8750 | . . . . . . . . 1265 . 2176 3465 . 221 74 . 1549 Ramming . | . . . . . . . . . . . . . . . . . Kinetic 56 | . . 39 17 . . . . . . . . . . . . . Thermal 3746 | . . . 181 37 . 75 97 604 . . 414 1328 . . 319 691 Explosive 828 | . . . . . . . . . . . 548 . . . . 280 Electromagnetic 14373 | . 66 75 978 546 . 410 1076 2676 4 1625 1319 2235 208 507 586 2062 Impact 8750 | . . . . . . . . 1265 . 2176 3465 . 221 74 . 1549 Slashing . | . . . . . . . . . . . . . . . . . Piercing . | . . . . . . . . . . . . . . . . . Highest Corruption 22 | . . . 4 6 6 6 . 16 16 22 . . 1 1 2 19 Average Corruption 9 | . . . 2 4 6 6 . 8 16 18 . . 1 1 1 5 Corruption Purged . | . . . . . . . . . . . . . . . . . Corruption Blocked . | . . . . . . . . . . . . . . . . . Effects 152 | . . . 2 7 2 4 . 35 4 67 . . . 1 2 28 Message Errors 31 | . . . . 1 . 2 . 3 2 18 . . . 1 . 4 Matter Fused 31 | . . . 1 2 . 1 . 11 1 9 . . . . . 6 Heat Flow Errors 15 | . . . . 1 1 . . 4 . 6 . . . . . 3 Energy Discharges 22 | . . . . 3 . . . 3 . 9 . . . . . 7 Parts Rejected 4 | . . . . . . . . 1 1 1 . . . . 1 . Parts Fused 3 | . . . . . . . . . . . . . . . . 3 Data Loss (minor) 17 | . . . . . 1 . . 6 . 9 . . . . . 1 Data Loss (major) 7 | . . . . . . . . 2 . 3 . . . . 1 1 Misfires 4 | . . . 1 . . . . 2 . 1 . . . . . . Alerts 4 | . . . . . . . . . . 3 . . . . . 1 Misdirections 4 | . . . . . . . . . . 4 . . . . . . Weapon Failures 10 | . . . . . . 1 . 3 . 4 . . . . . 2 Overload Shots . | . . . . . . . . . . . . . . . . . Overflow Damage 2812 | . . . . 1 . . 3 568 . 674 836 . . 64 8 658 Projectiles 43 | . . . . . . . . . . 43 . . . . . . Explosions 192 | . . . . 1 . . 3 85 . . 18 . . . 8 77 Melee 2577 | . . . . . . . . 483 . 631 818 . . 64 . 581 Knockbacks 37 | . . . . . . . . 4 . 10 17 . . 1 . 5 Impact 37 | . . . . . . . . 4 . 10 17 . . 1 . 5 Kinetic . | . . . . . . . . . . . . . . . . . Secondary . | . . . . . . . . . . . . . . . . . Self-Inflicted Damage 2181 | . . . 72 134 . 32 91 70 . . 277 652 . 34 238 581 Shots 55 | . . . 2 8 . 3 4 4 . . 6 11 . 1 4 12 Rammed . | . . . . . . . . . . . . . . . . . Targets Rammed . | . . . . . . . . . . . . . . . . . Kicked . | . . . . . . . . . . . . . . . . . Crushed . | . . . . . . . . . . . . . . . . . Highest Temperature 415 | . 6 72 415 250 123 8 50 345 28 220 84 110 105 111 51 226 Average Temperature 55 | . 5 31 116 51 64 8 29 79 20 48 30 32 60 52 24 32 Received Heat Transfer 1916 | . . . 114 87 . 45 324 270 . 184 317 233 93 36 45 168 Effects 4 | . . . 4 . . . . . . . . . . . . . Energy Bleed 2 | . . . 2 . . . . . . . . . . . . . Interference 2 | . . . 2 . . . . . . . . . . . . . Siege Activations . | . . . . . . . . . . . . . . . . . Martial Activations . | . . . . . . . . . . . . . . . . . Shielding Activations . | . . . . . . . . . . . . . . . . . Robots Disrupted 2 | . . . . . . . . 1 . . . . . . . 1 Combat Hostiles 2 | . . . . . . . . 1 . . . . . . . 1 Robots Corrupted 47 | . . . . 1 . 1 . 7 . 9 18 1 1 1 1 7 Combat Hostiles 39 | . . . . 1 . 1 . 6 . 5 17 1 1 . 1 6 Parts Fried 142 | . . . 9 2 . 2 4 25 . 20 30 20 1 9 2 18 Impact Corruptions 98 | . . . . . . . . 21 . 21 31 . . 2 . 23 Robots Melted . | . . . . . . . . . . . . . . . . . Combat Hostiles . | . . . . . . . . . . . . . . . . . Parts Melted 4 | . . . 1 . . . . . . 2 1 . . . . . Heat Transferred 3400 | . . . 250 50 . 100 50 500 . . 450 1200 . . 300 500 Parts Sabotaged . | . . . . . . . . . . . . . . . . . Parts Stolen . | . . . . . . . . . . . . . . . . . Parts Stripped . | . . . . . . . . . . . . . . . . . Power Chain Reactions 45 | . . . 2 4 . 2 3 7 . . 4 10 . 1 3 9 Alert | -11 -10 -10 -9 -9 -9 -8 -8 -7 -7 -7 -6 -6 -6 -6 -6 -5 ------- Run | Yrd Mat Min Mat Min Exi Min Mat Fac Was Fac Fac Ext Cet Arc Hub Fac Maximum Alert Level 3 | . . 1 2 1 . . 2 3 1 2 3 3 2 1 2 3 Low Security (%) 10 | 100 100 70 47 67 . 100 16 . . . . . . . 18 . Level 1 36 | . . 29 36 32 . . 12 20 100 53 49 . . 100 22 46 Level 2 33 | . . . 16 . . . 71 47 . 46 18 68 100 . 58 23 Level 3 19 | . . . . . . . . 31 . . 31 31 . . . 29 Level 4 . | . . . . . . . . . . . . . . . . . Level 5 . | . . . . . . . . . . . . . . . . . High Security . | . . . . . . . . . . . . . . . . . Max Security . | . . . . . . . . . . . . . . . . . Peak Influence 1084 | . 80 211 517 285 . 171 562 1084 378 602 1055 1075 661 321 495 883 Initial 592 | . . 31 74 192 . . 62 241 378 243 289 514 592 250 105 242 Average 464 | . 26 152 265 191 . 60 408 581 362 373 544 688 630 282 372 495 Influence Increases 8243 | . 100 210 641 313 . 201 580 1355 . 857 1312 875 83 101 420 1195 Destroy 0b10 Robot/C 4520 | . 60 160 360 180 . 160 240 560 . 560 840 640 60 80 80 540 Destroy 0b10 Robot/NC 250 | . . . 20 10 . . 15 90 . 35 25 5 5 5 15 25 Destroy Leader 892 | . 10 20 90 30 . 30 40 176 . 140 162 52 . . 10 132 Allied During Kill 27 | . . . . 4 . . . . . . . 17 6 . . . Successful Hack 87 | . . . . . . . 7 6 . 18 50 . 4 . . 2 Disable Machine 810 | . . . 30 15 . . 60 300 . 75 45 45 . . 135 105 Anti-Garrison Action 150 | . . . . . . . 150 . . . . . . . . . Destroy Structure 637 | . . . 6 14 . 11 8 118 . 14 40 56 8 1 135 226 Partial Spotted 165 | . . . 45 15 . . . 45 . 15 15 15 . . . 15 Lose Combat Pursuer 705 | . 30 30 90 45 . . 60 60 . . 135 45 . 15 45 150 Influence Decreases 7360 | . 20 99 339 541 265 40 209 807 732 615 851 867 517 425 226 807 Entered New Map 4058 | . . 49 117 301 265 . 99 291 702 105 301 537 467 375 196 253 Time Decay 3202 | . 20 50 222 190 . 40 110 506 30 510 550 310 50 50 30 534 Lost Part 30 | . . . . 10 . . . 10 . . . . . . . 10 Lost Ally 70 | . . . . 40 . . . . . . . 20 . . . 10 Squads Dispatched 51 | . . . 1 . . . 6 13 . 10 11 2 . . 1 7 Investigation 17 | . . . . . . . 1 4 . 6 3 1 . . . 2 Extermination 13 | . . . . . . . . 4 . 3 3 . . . . 3 Reinforcement 14 | . . . 1 . . . 3 4 . 1 2 1 . . . 2 Assault 2 | . . . . . . . 2 . . . . . . . . . Garrison 5 | . . . . . . . . 1 . . 3 . . . 1 . Intercept . | . . . . . . . . . . . . . . . . . Searches Triggered . | . . . . . . . . . . . . . . . . . Construction Impeded 3 | . . . . . . . . 2 . . 1 . . . . . Haulers Reinforced 2 | . . . . . . . . 1 . . 1 . . . . . Active Scanning Responses . | . . . . . . . . . . . . . . . . . Cargo Convoy Interrupts . | . . . . . . . . . . . . . . . . . Stealth | -11 -10 -10 -9 -9 -9 -8 -8 -7 -7 -7 -6 -6 -6 -6 -6 -5 --------- Run | Yrd Mat Min Mat Min Exi Min Mat Fac Was Fac Fac Ext Cet Arc Hub Fac Distress Signals 13 | . . . 1 . . . 2 1 . 2 4 . 1 . . 2 Communications Jammed . | . . . . . . . . . . . . . . . . . Distress Signals . | . . . . . . . . . . . . . . . . . Times Spotted 338 | . 11 10 31 12 . 6 35 38 6 32 57 35 5 5 8 47 Peak Tracking Total 15 | . 4 3 6 3 . 4 15 6 6 4 10 6 5 4 4 6 Tactical Retreats 34 | . 1 1 3 2 . . 4 3 . . 8 2 . 1 2 7 Traps | -11 -10 -10 -9 -9 -9 -8 -8 -7 -7 -7 -6 -6 -6 -6 -6 -5 ------- Run | Yrd Mat Min Mat Min Exi Min Mat Fac Was Fac Fac Ext Cet Arc Hub Fac Traps Triggered 16 | . . . 1 . . . 1 4 . 3 1 2 . . 1 3 Indirectly 1 | . . . . . . . . . . . . . . . 1 . Trap Hack Attempts . | . . . . . . . . . . . . . . . . . Triggered . | . . . . . . . . . . . . . . . . . Disarmed . | . . . . . . . . . . . . . . . . . Reprogrammed . | . . . . . . . . . . . . . . . . . Reused . | . . . . . . . . . . . . . . . . . Traps Extracted . | . . . . . . . . . . . . . . . . . Installed . | . . . . . . . . . . . . . . . . . Triggered . | . . . . . . . . . . . . . . . . . Machines | -11 -10 -10 -9 -9 -9 -8 -8 -7 -7 -7 -6 -6 -6 -6 -6 -5 ---------- Run | Yrd Mat Min Mat Min Exi Min Mat Fac Was Fac Fac Ext Cet Arc Hub Fac Machines Disabled 56 | . . . 3 1 . . 5 20 . 5 3 3 . . 9 7 Max in Single Turn 11 | . . . 1 1 . . 2 11 . 1 1 3 . . 9 2 Garrison Access 4 | . . . . . . . 1 . . . 1 . . . . 2 Network Hub 1 | . . . . . . . . . . . . . . . 1 . Energy Cycler 2 | . . . . . . . . . . . . 2 . . . . Machines Repaired . | . . . . . . . . . . . . . . . . . Machines Dismantled . | . . . . . . . . . . . . . . . . . Machines Sabotaged . | . . . . . . . . . . . . . . . . . Overloaded Fab Kills . | . . . . . . . . . . . . . . . . . Hacking | -11 -10 -10 -9 -9 -9 -8 -8 -7 -7 -7 -6 -6 -6 -6 -6 -5 --------- Run | Yrd Mat Min Mat Min Exi Min Mat Fac Was Fac Fac Ext Cet Arc Hub Fac Machines Accessed 45 | . . . . . 1 . 2 5 . 8 13 3 1 1 . 11 Terminals 24 | . . . . . . . 1 1 . 2 9 3 1 . . 7 Fabricators 12 | . . . . . . . . 3 . 4 3 . . . . 2 Repair Stations 3 | . . . . . . . . 1 . 2 . . . . . . Recycling Units . | . . . . . . . . . . . . . . . . . Scanalyzers 1 | . . . . . . . 1 . . . . . . . . . Garrison Access 3 | . . . . . . . . . . . 1 . . . . 2 Total Hacks 87 | . . . . . 1 . 5 13 . 14 23 5 1 1 . 24 Successful 64 | . . . . . 1 . 3 7 . 10 20 2 1 1 . 19 Failed 23 | . . . . . . . 2 6 . 4 3 3 . . . 5 Catastrophic 1 | . . . . . . . 1 . . . . . . . . . Database Lockouts . | . . . . . . . . . . . . . . . . . Manual 47 | . . . . . 1 . 3 5 . 5 15 3 . . . 15 Terminals 43 | . . . . . . . 3 2 . 3 14 5 1 . . 15 Fabricators 32 | . . . . . . . . 10 . 9 7 . . . . 6 Repair Stations 3 | . . . . . . . . 1 . 2 . . . . . . Recycling Units . | . . . . . . . . . . . . . . . . . Scanalyzers 2 | . . . . . . . 2 . . . . . . . . . Garrison Access 5 | . . . . . . . . . . . 2 . . . . 3 Terminal Hacks 17 | . . . . . 1 . 1 1 . 1 3 2 1 1 . 6 Record 1 | . . . . . . . . . . . . . . 1 . . Part Schematic 5 | . . . . . . . 1 . . . 1 . . . . 3 Open Door 3 | . . . . . . . . . . . . 2 1 . . . Branch Access Points 1 | . . . . . . . . . . . . . . . . 1 Terminal Index 2 | . . . . . . . . . . . 1 . . . . 1 Fabricator Index 3 | . . . . . . . . . . 1 1 . . . . 1 Recall Investigation 1 | . . . . . . . . 1 . . . . . . . . Proto ID Catalog 1 | . . . . . 1 . . . . . . . . . . . Fabricator Hacks 20 | . . . . . . . . 4 . 6 6 . . . . 4 Network Status 1 | . . . . . . . . 1 . . . . . . . . Load Schematic 11 | . . . . . . . . 2 . 4 3 . . . . 2 Build 8 | . . . . . . . . 1 . 2 3 . . . . 2 Repair Station Hacks . | . . . . . . . . . . . . . . . . . Recycling Unit Hacks . | . . . . . . . . . . . . . . . . . Scanalyzer 2 | . . . . . . . 2 . . . . . . . . . Insert Component 1 | . . . . . . . 1 . . . . . . . . . Analyze 1 | . . . . . . . 1 . . . . . . . . . Garrison Access Hacks 3 | . . . . . . . . . . . 1 . . . . 2 Seal Access 3 | . . . . . . . . . . . 1 . . . . 2 Unauthorized Hacks 22 | . . . . . . . . 2 . 3 10 . . . . 7 Terminals 15 | . . . . . . . . . . . 9 . . . . 6 Assimilate 1 | . . . . . . . . . . . . . . . . 1 Skim 14 | . . . . . . . . . . . 9 . . . . 5 Fabricators 4 | . . . . . . . . 1 . 1 1 . . . . 1 Prioritize 3 | . . . . . . . . 1 . . 1 . . . . 1 Recompile 1 | . . . . . . . . . . 1 . . . . . . Repair Stations 3 | . . . . . . . . 1 . 2 . . . . . . Patch 3 | . . . . . . . . 1 . 2 . . . . . . Recycling Units . | . . . . . . . . . . . . . . . . . Scanalyzers . | . . . . . . . . . . . . . . . . . Garrison Access . | . . . . . . . . . . . . . . . . . Data Cores Recovered 6 | . . . 2 . . . . 1 . 3 . . . . . . Used 2 | . . . . . . . . 1 . 1 . . . . . . Hacking Detections 23 | . . . . . . . 1 3 . 4 8 2 . . . 5 Full Trace Events 11 | . . . . . . . 1 2 . 3 3 . . . . 2 Feedback Events . | . . . . . . . . . . . . . . . . . Feedback Blocked . | . . . . . . . . . . . . . . . . . Robot Schematics Acquired . | . . . . . . . . . . . . . . . . . Robots Built . | . . . . . . . . . . . . . . . . . Authchips . | . . . . . . . . . . . . . . . . . Time . | . . . . . . . . . . . . . . . . . Total Robot Build Rating . | . . . . . . . . . . . . . . . . . Part Schematics Acquired 6 | . . . . . . . 2 . . . 1 . . . . 3 Parts Built 10 | . . . . . . . . 1 . 2 3 . . . . 4 Authchips 1 | . . . . . . . . . . 1 . . . . . . Time 253 | . . . . . . . . 31 . 48 115 . . . . 59 Total Part Build Rating 26 | . . . . . . . . 2 . 6 6 . . . . 12 Parts Repaired . | . . . . . . . . . . . . . . . . . Time . | . . . . . . . . . . . . . . . . . Parts Recycled . | . . . . . . . . . . . . . . . . . Recycled Matter . | . . . . . . . . . . . . . . . . . Retrieved Matter . | . . . . . . . . . . . . . . . . . Retrieved Components . | . . . . . . . . . . . . . . . . . Parts Scanalyzed 1 | . . . . . . . 1 . . . . . . . . . Part Schematics Acquired 1 | . . . . . . . 1 . . . . . . . . . Parts Damaged . | . . . . . . . . . . . . . . . . . Bothacking | -11 -10 -10 -9 -9 -9 -8 -8 -7 -7 -7 -6 -6 -6 -6 -6 -5 ------------ Run | Yrd Mat Min Mat Min Exi Min Mat Fac Was Fac Fac Ext Cet Arc Hub Fac Used RIF Installer . | . . . . . . . . . . . . . . . . . Robots Hacked . | . . . . . . . . . . . . . . . . . Non-combat . | . . . . . . . . . . . . . . . . . Combat . | . . . . . . . . . . . . . . . . . Robot Hacks Applied . | . . . . . . . . . . . . . . . . . Relay Couplers Released 4 | . . . . . . . 1 1 . . . . . . . 2 Machine Destruction 1 | . . . . . . . 1 . . . . . . . . . Programmers 3 | . . . . . . . . 1 . . . . . . . 2 Fabnet Peak Effective % . | . . . . . . . . . . . . . . . . . Robots Rewired . | . . . . . . . . . . . . . . . . . Allies Hacked . | . . . . . . . . . . . . . . . . . Hacks Repelled . | . . . . . . . . . . . . . . . . . Allies | -11 -10 -10 -9 -9 -9 -8 -8 -7 -7 -7 -6 -6 -6 -6 -6 -5 -------- Run | Yrd Mat Min Mat Min Exi Min Mat Fac Was Fac Fac Ext Cet Arc Hub Fac Total Allies 6 | . . . . 2 . . . . . . . 3 . . . 1 Largest Group 2 | . . . . 2 . . . . . . . 1 1 1 . 1 Highest-Rated Group 159 | . . . . 45 . . . . . . . 159 159 159 . 26 Highest-Rated Ally 159 | . . . . 31 . . . . . . . 159 159 159 . 26 Total Orders . | . . . . . . . . . . . . . . . . . Ally Attacks 32 | . . . . 6 . . . . . . . 15 9 2 . . Total Damage 1173 | . . . . 85 . . . . . . . 349 678 61 . . Kills 7 | . . . . 1 . . . . . . . 3 3 . . . Allies Corrupted . | . . . . . . . . . . . . . . . . . Allies Melted . | . . . . . . . . . . . . . . . . . Intel | -11 -10 -10 -9 -9 -9 -8 -8 -7 -7 -7 -6 -6 -6 -6 -6 -5 ------- Run | Yrd Mat Min Mat Min Exi Min Mat Fac Was Fac Fac Ext Cet Arc Hub Fac Active Infowar (turns) 6605 | . . . . . . . . 1065 79 1382 1598 683 105 100 75 1518 Structural 6605 | . . . . . . . . 1065 79 1382 1598 683 105 100 75 1518 Robot Analysis Total . | . . . . . . . . . . . . . . . . . Derelict Logs Recovered 2 | . . 1 . 1 . . . . . . . . . . . . Drone Launches . | . . . . . . . . . . . . . . . . . Drone Recoveries . | . . . . . . . . . . . . . . . . . Exploration | -11 -10 -10 -9 -9 -9 -8 -8 -7 -7 -7 -6 -6 -6 -6 -6 -5 ------------- Run | Yrd Mat Min Mat Min Exi Min Mat Fac Was Fac Fac Ext Cet Arc Hub Fac Turns Passed 8427 | 16 96 117 478 393 80 114 228 1365 79 1382 1598 683 105 100 75 1518 Spaces Moved 9896 | 24 180 191 555 783 213 154 291 1468 197 1756 1403 628 103 107 126 1717 Core 96 | 24 58 . . . . . . . . . 14 . . . . . Treads . | . . . . . . . . . . . . . . . . . Legs . | . . . . . . . . . . . . . . . . . Wheels . | . . . . . . . . . . . . . . . . . Hover . | . . . . . . . . . . . . . . . . . Flight 9800 | . 122 191 555 783 213 154 291 1468 197 1756 1389 628 103 107 126 1717 Fastest Speed 37 | 50 37 37 37 37 37 37 37 37 37 37 37 37 37 37 37 37 Average Speed 37 | 50 41 37 37 37 37 37 37 37 37 37 37 37 37 37 37 37 Slowest Speed 120 | 50 50 37 37 37 37 37 37 120 37 37 100 37 37 37 37 37 Overloaded Moves . | . . . . . . . . . . . . . . . . . Propulsion Burnouts . | . . . . . . . . . . . . . . . . . Robots Hopped 51 | . . 3 9 13 . . 4 4 4 . 6 5 . . . 3 Potential Cave-ins . | . . . . . . . . . . . . . . . . . Cave-ins Triggered . | . . . . . . . . . . . . . . . . . Exploration Rate (%) 48 | 3 42 48 46 99 61 46 28 29 84 43 26 68 59 76 22 40 Regions Visited 16 Branch Regions 8 Pre-discovered Areas 1 | . . 1 . . . . . . . . . . . . . . Known Exits Taken 2 | . . . . . . . . . . . . . . 1 1 . Unknown Exits Taken 12 | 1 1 1 1 1 1 1 1 . . 1 1 1 1 . . . Scrap Searched 4 | . . 1 . 2 . 1 . . . . . . . . . . Spaces Dug 52 | . . . . . . . . 10 . 10 7 . . . . 25 Terrain Destroyed 594 | . . . 4 15 . 11 8 133 . 10 56 61 . . 179 117 Melee 52 | . . . . . . . . 10 . 10 7 . . . . 25 Projectile . | . . . . . . . . . . . . . . . . . AOE 542 | . . . 4 15 . 11 8 123 . . 49 61 . . 179 92 Terrain Rammed . | . . . . . . . . . . . . . . . . . Walls Destroyed . | . . . . . . . . . . . . . . . . . Machines Disabled . | . . . . . . . . . . . . . . . . . Actions | -11 -10 -10 -9 -9 -9 -8 -8 -7 -7 -7 -6 -6 -6 -6 -6 -5 --------- Run | Yrd Mat Min Mat Min Exi Min Mat Fac Was Fac Fac Ext Cet Arc Hub Fac Total 13548 | 26 192 211 728 832 213 189 354 2013 195 2365 2354 978 159 146 141 2452 Wait 2295 | . 4 2 83 17 . . 5 360 . 353 692 213 15 22 8 521 Move 9783 | 23 179 184 537 756 212 153 283 1460 190 1755 1390 617 102 106 125 1711 Hop 47 | . . 3 8 13 . . 3 4 2 . 6 5 . . . 3 Pick Up 61 | . . . 6 4 1 1 4 4 1 9 14 8 2 1 1 5 Fast Attach 47 | 2 3 1 3 2 . 1 2 17 1 9 1 . . . 1 4 Attach 11 | . . . 2 . . . . 2 . 4 2 1 . . . . Detach 6 | . . . 2 . . . . 1 . 2 . . . . . 1 Swap 34 | . . 2 2 1 . 2 1 11 . 5 6 1 . . . 3 Drop 76 | 1 . 2 5 3 . 3 7 6 . 12 15 8 4 . . 10 Fire 405 | . 6 15 46 22 . 16 27 79 1 42 36 44 4 9 5 53 Melee 326 | . . . . . . . . 56 . 74 113 . 8 1 1 73 Ram . | . . . . . . . . . . . . . . . . . Kick . | . . . . . . . . . . . . . . . . . Crush . | . . . . . . . . . . . . . . . . . Escape Stasis 60 | . . . . . . . . . . 18 8 16 . . . 18 Rewire 3 | . . . . . . . . . . . . . . . . 3 Trap . | . . . . . . . . . . . . . . . . . Miscellaneous 394 | . . 2 34 14 . 13 22 13 . 82 71 65 24 7 . 47 Route ------- -11/Scrapyard -10/Materials -10/Mines -9/Materials (discovered 3 exits: *Mat x2 / [*Min]) -9/Mines (discovered 3 exits: *Mat x2 / *Exi) -9/Exiles -8/Mines -8/Materials -7/Factory (discovered 3 exits: *Fac / [*Sto] / [*Low]) -7/Waste -7/Factory (discovered 5 exits: *Fac x3 / [*Sto] / [*Low]) -6/Factory (discovered 2 exits: *Fac / *Ext) -6/Extension (discovered 2 exits: *Fac / *Cet) -6/Cetus -6/Archives (discovered 2 exits: *Hub x2) -6/Hub_04(d) -5/Factory (discovered 2 exits: Upp x2) History --------- Turn | Location | Event 6 | -11/Scrapyard | Upgraded with Propulsion slot (x1) 6 | -11/Scrapyard | Upgraded with Weapon slot (x1) 9 | -11/Scrapyard | Discovered new exit (range 15) 17 | -11/Scrapyard | Entered Materials 61 | -10/Materials | Discovered new exit (range 8) 113 | -10/Materials | Entered Mines 158 | -10/Mines | Learned location of Storage (-7) 176 | -10/Mines | Reached level 2 227 | -10/Mines | Discovered new exit (range 6) 230 | -10/Mines | Entered Materials 232 | -9/Materials | Reached level 3 300 | -9/Materials | Build established: Mutant 464 | -9/Materials | Reached level 4 527 | -9/Materials | Upgraded with Weapon slot (x1) 559 | -9/Materials | Upgraded with Utility slot (x1) 564 | -9/Materials | Discovered new exit (range 10) 610 | -9/Materials | Discovered new exit (range 15) 627 | -9/Materials | Discovered new exit (range 12) 708 | -9/Materials | Entered Mines 710 | -9/Mines | Reached level 5 726 | -9/Mines | Discovered new exit (range 6) 811 | -9/Mines | Build established: Scavenger-Mutant 812 | -9/Mines | Found a Scrap Suit stashed away for nefarious purposes 834 | -9/Mines | Learned location of 1 exit from Lower Caves 892 | -9/Mines | Discovered new exit (range 6) 1030 | -9/Mines | A weapon hastily lodged in a ceiling crevice suddenly fell to the ground 1081 | -9/Mines | Found a damaged Exp. Sensor Array with a note attached 1099 | -9/Mines | Deemed a non-threat by the Exiles lab entrance 1099 | -9/Mines | Discovered new exit (range 5) 1101 | -9/Mines | Entered Exiles 1103 | -9/Exiles | Reached level 6 1111 | -9/Exiles | Met 8R-AWN 1117 | -9/Exiles | Met EX-HEX 1127 | -9/Exiles | Met EX-BIN 1131 | -9/Exiles | Aligned with FarCom system 1132 | -9/Exiles | Given EX-Vault access code 1143 | -9/Exiles | Opened EX-Vault 1145 | -9/Exiles | Found Field Lobotomy Kit 1154 | -9/Exiles | Warned to stay clear of 0b10 Research branches 1164 | -9/Exiles | Met EX-DEC 1178 | -9/Exiles | Discovered new exit (range 10) 1181 | -9/Exiles | Left Exiles lab with Field Lobotomy Kit 1181 | -9/Exiles | Entered Mines 1274 | -8/Mines | Reached level 7 1289 | -8/Mines | Discovered new exit (range 9) 1295 | -8/Mines | Destroyed 7 combat bots 1295 | -8/Mines | Entered Materials 1297 | -8/Materials | Reached level 8 1301 | -8/Materials | Upgraded with Utility slot (x3) 1338 | -8/Materials | Reached level 9 1483 | -8/Materials | Upgraded with Utility slot (x1) 1517 | -8/Materials | Discovered new exit (range 15) 1523 | -8/Materials | Entered Factory 1525 | -7/Factory | Reached level 10 1654 | -7/Factory | Fabricated EMP Blaster? 1719 | -7/Factory | Reached level 11 1770 | -7/Factory | Build established: Mutant 1822 | -7/Factory | Discovered new exit (range 8) 1984 | -7/Factory | Core integrity fell below 50% 2099 | -7/Factory | Reached level 12 2114 | -7/Factory | Build established: Scavenger-Mutant 2132 | -7/Factory | Garrison activated, responded to threat 2180 | -7/Factory | Discovered new exit (range 13) 2250 | -7/Factory | Discovered new exit (range 14) 2582 | -7/Factory | Reached level 13 2636 | -7/Factory | Core integrity fell below 20% 2645 | -7/Factory | System corruption reached 10% 2770 | -7/Factory | Reached level 14 2888 | -7/Factory | Sucked down chute 2888 | -7/Factory | Entered Waste 2933 | -7/Waste | Spotted C-40 Crusher 2938 | -7/Waste | Spotted C-40 Crusher 2942 | -7/Waste | Spotted C-40 Crusher 2948 | -7/Waste | Spotted C-40 Crusher 2954 | -7/Waste | Spotted C-40 Crusher 2962 | -7/Waste | Spotted C-40 Crusher 2962 | -7/Waste | Discovered new exit (range 11) 2967 | -7/Waste | Entered Factory 3061 | -7/Factory | Discovered new exit (range 2) 3460 | -7/Factory | Reached level 15 3537 | -7/Factory | Upgraded with Utility slot (x1) 3636 | -7/Factory | Discovered new exit (range 9) 3731 | -7/Factory | Discovered new exit (range 7) 3904 | -7/Factory | Fabricated Hacking Suite (x1) 3925 | -7/Factory | Discovered new exit (range 5) 4147 | -7/Factory | Fabricated Hacking Suite (x1) 4193 | -7/Factory | Discovered new exit (range 11) 4207 | -7/Factory | Build established: Hacker-Mutant 4349 | -7/Factory | Entered another Factory area 4351 | -6/Factory | Reached level 16 4352 | -6/Factory | Upgraded with Utility slot (x1) 4445 | -6/Factory | Reached level 17 4633 | -6/Factory | Learned location of 2 exits from Archives 4682 | -6/Factory | Learned location of 2 exits from Lower Caves 4723 | -6/Factory | Learned Hub_04(d) stockpile data 4753 | -6/Factory | Learned Hub_04(d) trap positions 4771 | -6/Factory | Learned location of 1 exit from Hub_04(d) 4799 | -6/Factory | Loaded intel: 8 recycling unit locations 4835 | -6/Factory | Learned Extension stockpile data 5170 | -6/Factory | Reached level 18 5196 | -6/Factory | Destroyed 7 combat bots 5343 | -6/Factory | Fabricated Imp. EM Shotgun? 5346 | -6/Factory | Garrison activated, responded to threat 5508 | -6/Factory | Fabricated Imp. EM Shotgun (x1) 5781 | -6/Factory | Fabricated Imp. EM Shotgun? 5888 | -6/Factory | Discovered new exit (range 12) 5892 | -6/Factory | Reached level 19 5932 | -6/Factory | Discovered new exit (range 16) 5947 | -6/Factory | Entered Extension 5965 | -6/Extension | Rescued a captive Derelict 6112 | -6/Extension | Build established: Hacker-Skirmisher 6350 | -6/Extension | Spotted B-75 Beast 6352 | -6/Extension | Spotted B-75 Beast 6372 | -6/Extension | Disrupted transfer network 6396 | -6/Extension | Rescued a captive Derelict 6399 | -6/Extension | Rescued a captive Derelict 6571 | -6/Extension | Energy Cycler disabled 6577 | -6/Extension | Rescued A7 6579 | -6/Extension | Reached level 20 6590 | -6/Extension | Upgraded with Weapon slot (x1) 6616 | -6/Extension | Discovered new exit (range 10) 6616 | -6/Extension | Discovered new exit (range 6) 6630 | -6/Extension | Entered Cetus 6630 | -6/Cetus | Accompanied by 1 ally (A7) 6635 | -6/Cetus | Acquired a Cetus Manufacturing Module code from A7 6636 | -6/Cetus | Spotted Cetus Guard 6636 | -6/Cetus | Spotted Cetus Guard 6636 | -6/Cetus | Spotted Cetus Guard 6639 | -6/Cetus | Spotted Cetus Guard 6652 | -6/Cetus | Destroyed Cetus Guard 6659 | -6/Cetus | Allies destroyed Cetus Guard 6668 | -6/Cetus | Allies destroyed Cetus Guard 6715 | -6/Cetus | Escorted A7 to Cetus Mainframe 6722 | -6/Cetus | Discovered new exit (range 15) 6735 | -6/Cetus | Entered Archives 6735 | -6/Archives | Accompanied by 1 ally (A7) 6736 | -6/Archives | Identified exit to Hub_04(d) 6740 | -6/Archives | Received a hacking code to weaken MAIN.C 6829 | -6/Archives | Unable to access archive contents 6835 | -6/Archives | Entered Hub_04(d) 6836 | -6/Hub_04(d) | Identified exit to Factory 6837 | -6/Hub_04(d) | Loaded intel: 12 trap records 6849 | -6/Hub_04(d) | Network Hub disabled 6890 | -6/Hub_04(d) | Build established: Hacker-Tank 6905 | -6/Hub_04(d) | Garrison activated, responded to threat 6910 | -6/Hub_04(d) | Entered Factory 6912 | -5/Factory | Reached level 21 7250 | -5/Factory | Fabricated Force Field (x2) 7618 | -5/Factory | Core integrity fell below 50% 7625 | -5/Factory | Reached level 22 7791 | -5/Factory | Fabricated Datajack (x2) 8001 | -5/Factory | Identified exit to Upper Caves 8022 | -5/Factory | Spotted B-75 Beast 8200 | -5/Factory | Learned Armory stockpile data 8238 | -5/Factory | System corruption reached 10% 8260 | -5/Factory | Learned Quarantine stockpile data 8308 | -5/Factory | Learned 4 Research zone layouts 8345 | -5/Factory | Learned location of 1 exit from Research 8374 | -5/Factory | Learned 4 Upper Caves zone layouts 8392 | -5/Factory | Core integrity fell below 20% 8406 | -5/Factory | Learned Armory trap positions 8427 | -5/Factory | Learned Research security intel 8428 | -5/Factory | Destroyed by P-70 Sage with Tesla Rifle Last Messages --------------- >> SKIM: Stored Armory trap records. Destroyed Antigrav System. P-70 Sage system corrupted by crushing effect. System corrupted: Energy discharge (-211). P-70 Sage resets P-70 Sage, system corruption cleaned. P-70 Sage suffers critical hit (Smash). Destroyed Imp. Target Analyzer. P-70 Sage system corrupted by crushing effect. Destroyed Mic. Fission Core. P-70 Sage system corrupted by crushing effect. Destroyed Imp. Heat Sink. P-70 Sage system corrupted by crushing effect. Antigrav System fried. P-70 Sage destroyed. P-70 Sage suffers critical hit (Smash). Destroyed Antigrav System. Destroyed Tesla Rifle. P-70 Sage system corrupted by crushing effect. P-70 Sage destroyed. >> SKIM: Stored Research security intel. Map ----- +----------------------------------------------------+ | ?????????????????????????????????????????????????? | | ?????????????????????????????????????????????????? | | ?????????????????????????????????????????????????? | | ?????????????????????????????????????????????????? | | ?????????????????????????????????????????????????? | | ?????????????????????????????????????????????????? | | ???????????????????? #####???????????????????????? | | ???????????????????? #####???????????????????????? | | ???????????????????? # ???????????????????????? | | ????????????????????## ""? # ???????????????????? | | ????????????????????## """ ##???????????????????? | | ????????????????????##! """ ##???????????????????? | | ????????????????????## #### ##??????????????? | | ????????????????????## """ ####+##??????????????? | | ????????????????????## """ ## ##??????????????? | | ????????????????????## """ ## ! ##??????????????? | | ????????????????????## ## ##??????????????? | | ????????????????????##= """ ## #######?????????? | | ????????????????????## """ ##! =#########???????? | | ????????????????????## """ ## # ####???????? | | ????????????????????##= [[ ## ! ###??????? | | ????????????????????#####;##### # ## ??????? | | ????????????????????#### * ### # ??????? | | ??????????????????????## m # ??????? | | ?????????????????????### % ### ## ??????? | | ?????????????????????####@##### # ??????? | | ?????????????????????## ! = # # ## ??????? | | ?????????????????????## # ### ??????? | | ?????????????????????## ]# # ""G"" # ??????? | | ?????????????????????## """# # "" "" # ??????? | | ?????????????????????## """# # + ????? | | ?????????????????????##! """# # # ##????? | | ?????????????????????## !""# #######+## ##????? | | ?????????????????????## ""# ##????? | | ?????????????????????## ! # ####????? | | ?????????????????????## # ##??????? | | ?????????????????????## p # ##??????? | | ?????????????????????#####/#### ##??????? | | ?????????????????????##### #### ##??????? | | ????????????????????????## #### ###########??????? | | ?????????##########?????## ####=###########??????? | | ??????? ################## ####%######???????????? | | ??????? # ######### #### ######???????????? | | ??????? # " #[ !!## #### ##???????????? | | ??????? # " # |%[#[ ### ##???????????? | | ??????? # " # """%+% ##???????????? | | ??????? # " !! # Y"=# ### ##???????????? | | ??????? # " ! + """!## #### ##???????????? | | ??????? # " # ## #### ##???????????? | | ??????? # " ######### #### ##???????????? | +----------------------------------------------------+ Best States ------------- Heat Dissipation 49 Energy Generation 34 Energy Capacity 860 Matter Stores 300 Matter Capacity 300 Sight Range 16 Terrain Scan Density 10 Armor Coverage 300 Resistance: KI 15 Resistance: TH 15 Melee Speed Boost 50 Evasion (%) 62 Offensive Hacking 50 Authchip Count 1 Item Schematics ----------------- Hacking Suite | -8/Materials | Hacked EMP Blaster | -8/Materials | Scanalyzed Imp. EM Shotgun | -6/Factory | Hacked Force Field | -5/Factory | Hacked Imp. Plasma Cutter | -5/Factory | Hacked Datajack | -5/Factory | Hacked Robot Schematics ------------------ None Fabricated ------------ EMP Blaster | x1 | -7/Factory Hacking Suite | x1 | -7/Factory | Authchip Hacking Suite | x1 | -7/Factory Imp. EM Shotgun | x1 | -6/Factory Imp. EM Shotgun | x1 | -6/Factory Imp. EM Shotgun | x1 | -6/Factory Force Field | x2 | -5/Factory Datajack | x2 | -5/Factory Repaired ---------- Nothing Alien Tech Used ----------------- None Achievements -------------- None Challenges ------------ None RPGLIKE | -11 -10 -10 -9 -9 -9 -8 -8 -7 -7 -7 -6 -6 -6 -6 -6 -5 --------- Run | Yrd Mat Min Mat Min Exi Min Mat Fac Was Fac Fac Ext Cet Arc Hub Fac Levels Raised 21 | . . 1 2 1 1 1 2 5 . 1 4 1 . . . 2 XP Earned 35232 | 3000 350 1400 3913 1637 350 1450 4020 6743 139 2223 4802 1588 243 210 518 2646 XP Spent 33675 | 1000 . . 6395 . 1250 . 6100 5680 . 2000 5300 3200 . . . 2750 Upgrades 61 | 2 . . 18 . 1 . 5 13 . 1 9 7 . . . 5 Propulsion Slot 1 | 1 . . . . . . . . . . . . . . . . Utility Slot 7 | . . . 1 . . . 4 . . 1 1 . . . . . Weapon Slot 3 | 1 . . 1 . . . . . . . . 1 . . . . Core Integrity 8 | . . . . . . . . 8 . . . . . . . . Heat Dissipation 4 | . . . 4 . . . . . . . . . . . . . Energy Generation 3 | . . . . . . . . . . . 2 . . . . 1 Energy Storage 14 | . . . 6 . . . . . . . 4 . . . . 4 Mass Support 5 | . . . 2 . . . 1 2 . . . . . . . . Inventory Capacity 5 | . . . 4 . 1 . . . . . . . . . . . Ranged Accuracy 3 | . . . . . . . . 3 . . . . . . . . Hack Attack % 2 | . . . . . . . . . . . 2 . . . . . KI Resistance % 3 | . . . . . . . . . . . . 3 . . . . TH Resistance % 3 | . . . . . . . . . . . . 3 . . . . Protomatter Created 3227 | . . 16 258 132 . 47 180 182 . 624 616 628 51 79 110 304 Integrity Restored 7803 | . . 48 579 282 . 222 479 288 . 1675 1327 1283 515 159 . 946 Core 6180 | . . 48 367 143 . 143 393 288 . 1273 1148 1039 413 143 . 782 Parts 1623 | . . . 212 139 . 79 86 . . 402 179 244 102 16 . 164 Protomatter Decayed 269 | . . . 16 . . . 26 . . 7 34 122 13 . 51 . Game ------ Seed AlloyPrecisionStorage Manual? 0 Play Time 01:44:35 Cumulative 205.6 hours Start 2025.05.26 @ 15:36:35 End 2025.05.26 @ 17:20:12 Sessions 1 Manual Loads 0 Difficulty Rogue Special Mode Winter2019/RPGLIKE Game No. 205 Rogue 21 Adventurer 173 Explorer 11 Win Type - Total 54 Types 14/1/15/2/12/0/4/1/0/5 Lore% 48 Gallery% 49 Achievement% 67 Wizard Run 0 Options --------- Layout 0 ASCII 0 Keyboard 0 Movement Numpad Keybinds 0 Fullscreen 2 Font 12/Smallcaps Map View 83x54 Zoom Use 0% Tactical HUD 0 Map Filters NONE Filters NONE Steam 1 RUN: d52dfc9c-2c04-4610-8537-7da5e73d49da